lending/lending_fUSD_20241211
["ID","MTS","AMOUNT","RATE_DAILY","PERIOD"]
[345022969,1733933471413,-3169.78,0.00011078,2]
[345022970,1733933471423,-3169.78,0.00011078,2]
[345022971,1733933471433,-3169.78,0.00011078,2]
[345022972,1733933471442,-3169.78,0.00011078,2]
[345022973,1733933471452,-3169.78,0.00011078,2]
[345022974,1733933471466,-757.0,0.00011078,2]
[345022975,1733933471475,-757.0,0.00011078,2]
[345022976,1733933471485,-757.0,0.00011078,2]
[345022977,1733933471495,-757.0,0.00011078,2]
[345022978,1733933471505,-757.0,0.00011078,2]
[345022979,1733933471514,-500.0,0.00011078,2]
[345022980,1733933471523,-500.0,0.00011078,2]
[345022981,1733933471533,-500.0,0.00011078,2]
[345022982,1733933471542,-500.0,0.00011078,2]
[345022983,1733933471551,-500.0,0.00011078,2]
[345022984,1733933471560,-568.81,0.00011078,2]
[345022985,1733933471570,-568.81,0.00011078,2]
[345022986,1733933471579,-568.81,0.00011078,2]
[345022987,1733933471589,-568.81,0.00011078,2]
[345022988,1733933471598,-568.81,0.00011078,2]
[345022989,1733933471607,-914.69,0.00011078,2]
[345022990,1733933471617,-914.69,0.00011078,2]
[345022991,1733933471626,-914.69,0.00011078,2]
[345022992,1733933471635,-914.69,0.00011078,2]
[345022993,1733933471644,-914.69,0.00011078,2]
[345022994,1733933471654,-3087.73,0.00011078,2]
[345022995,1733933471663,-3087.73,0.00011078,2]
[345022996,1733933471672,-3087.73,0.00011078,2]
[345022997,1733933471681,-3087.73,0.00011078,2]
[345022998,1733933471691,-1344.45,0.00011078,2]
[345022999,1733933471700,-3087.73,0.00011078,2]
[345023000,1733933471712,-1344.45,0.00011078,2]
[345023001,1733933471720,-1344.45,0.00011078,2]
[345023002,1733933471730,-1344.45,0.00011078,2]
[345023003,1733933471740,-1344.45,0.00011078,2]
[345023004,1733933471749,-953.53,0.00011078,2]
[345023005,1733933471758,-953.53,0.00011078,2]
[345023006,1733933471768,-953.53,0.00011078,2]
[345023007,1733933471777,-953.53,0.00011078,2]
[345023008,1733933471787,-953.53,0.00011078,2]
[345023009,1733933471796,-1061045.13,0.00011079,2]
[345023010,1733933471805,-151.0,0.00011079,2]
[345023011,1733933471815,-827.7995377,0.00011089,2]
[345023012,1733933471824,-691.309781,0.00011089,2]
[345023013,1733933471834,-3863.0777461,0.00011089,2]
[345023014,1733933471843,-896.1004887,0.00011092,2]
[345023015,1733933471852,-964.4014397,0.00011092,2]
[345023016,1733933471862,-1032.7023907,0.00011092,2]
[345023017,1733933471872,-1101.0033417,0.00011092,2]
[345023018,1733933471881,-753.7462908,0.00011092,2]
[345023019,1733933471890,-816.1828006,0.00011092,2]
[345023020,1733933471900,-878.6193103,0.00011092,2]
[345023021,1733933471909,-941.0558201,0.00011092,2]
[345023022,1733933471919,-4211.9764569,0.00011092,2]
[345023023,1733933471928,-4560.8751678,0.00011092,2]
[345023024,1733933471938,-4909.7738787,0.00011092,2]
[345023025,1733933471947,-5258.6725896,0.00011092,2]
[345023026,1733933471957,-757.55,0.00011097,2]
[345023027,1733933471969,-500.0,0.00011097,2]
[345023028,1733933471979,-500.0,0.00011097,2]
[345023029,1733933471988,-500.0,0.00011097,2]
[345023030,1733933471998,-500.0,0.00011097,2]
[345023031,1733933472008,-537.36,0.00011097,2]
[345023032,1733933472017,-630.74,0.00011097,2]
[345023033,1733933472027,-973.43,0.00011097,2]
[345023034,1733933472036,-568.81,0.00011097,2]
[345023035,1733933472045,-1344.45,0.00011097,2]
[345023036,1733933472055,-82422.11618473,0.00011098,2]
[345023037,1733933472066,-151.0,0.00011098,2]
[345023038,1733933472077,-757.55,0.00011098,2]
[345023039,1733933472087,-521.37,0.00011098,2]
[345023040,1733933472097,-521.37,0.00011098,2]
[345023041,1733933472106,-500.0,0.00011098,2]
[345023042,1733933472116,-500.0,0.00011098,2]
[345023043,1733933472125,-500.0,0.00011098,2]
[345023044,1733933472136,-1584.19,0.00011098,2]
[345023045,1733933472145,-1584.19,0.00011098,2]
[345023046,1733933472155,-774.47,0.00011098,2]
[345023047,1733933472169,-774.47,0.00011098,2]
[345023048,1733933472179,-500.0,0.00011098,2]
[345023049,1733933472189,-782.05,0.00011098,2]
[345023050,1733933472199,-782.05,0.00011098,2]
[345023051,1733933472214,-500.0,0.00011098,2]
[345023052,1733933472225,-500.0,0.00011098,2]
[345023053,1733933472235,-500.0,0.00011098,2]
[345023054,1733933472245,-500.0,0.00011098,2]
[345023055,1733933472254,-739.99,0.00011098,2]
[345023056,1733933472264,-739.99,0.00011098,2]
[345023057,1733933472275,-500.0,0.00011098,2]
[345023058,1733933472285,-500.0,0.00011098,2]
[345023059,1733933472294,-444.61265124,0.00011098,2]
[345023060,1733933472304,-678.49,0.00011098,2]
[345023061,1733933472313,-678.49,0.00011098,2]
[345023062,1733933472323,-496.18326677,0.00011098,2]
[345023063,1733933472332,-500.0,0.00011098,2]
[345023064,1733933472342,-500.0,0.00011098,2]
[345023065,1733933472351,-855.96,0.00011098,2]
[345023066,1733933472360,-855.96,0.00011098,2]
[345023067,1733933472370,-856.8,0.00011098,2]
[345023068,1733933472379,-856.8,0.00011098,2]
[345023069,1733933472388,-973.43,0.00011098,2]
[345023070,1733933472399,-5180.55,0.00011098,2]
[345023071,1733933472408,-5180.55,0.00011098,2]
[345023072,1733933472418,-507.75,0.00011098,2]
[345023073,1733933472427,-500.0,0.00011098,2]
[345023074,1733933472437,-500.0,0.00011098,2]
[345023075,1733933472446,-500.0,0.00011098,2]
[345023076,1733933472456,-500.0,0.00011098,2]
[345023077,1733933472470,-859.11,0.00011098,2]
[345023078,1733933472479,-859.11,0.00011098,2]
[345023079,1733933472489,-1689.59,0.00011098,2]
[345023080,1733933472498,-1689.59,0.00011098,2]
[345023081,1733933472508,-622.12,0.00011098,2]
[345023082,1733933472518,-622.12,0.00011098,2]
[345023083,1733933472528,-717.92,0.00011098,2]
[345023084,1733933472537,-717.92,0.00011098,2]
[345023085,1733933472547,-943.58,0.00011098,2]
[345023086,1733933472557,-943.58,0.00011098,2]
[345023087,1733933472567,-3169.78,0.00011098,2]
[345023088,1733933472577,-3169.78,0.00011098,2]
[345023089,1733933472586,-757.0,0.00011098,2]
[345023090,1733933472596,-757.0,0.00011098,2]
[345023091,1733933472606,-500.0,0.00011098,2]
[345023092,1733933472616,-500.0,0.00011098,2]
[345023093,1733933472625,-568.81,0.00011098,2]
[345023094,1733933472635,-914.69,0.00011098,2]
[345023095,1733933472643,-914.69,0.00011098,2]
[345023096,1733933472653,-3087.73,0.00011098,2]
[345023097,1733933472663,-3087.73,0.00011098,2]
[345023098,1733933472673,-1344.45,0.00011098,2]
[345023099,1733933472683,-953.53,0.00011098,2]
[345023100,1733933472693,-757.55,0.00011099,2]
[345023101,1733933472703,-757.55,0.00011099,2]
[345023102,1733933472715,-757.55,0.00011099,2]
[345023103,1733933472725,-757.55,0.00011099,2]
[345023104,1733933472734,-757.55,0.00011099,2]
[345023105,1733933472743,-757.55,0.00011099,2]
[345023106,1733933472752,-757.55,0.00011099,2]
[345023107,1733933472761,-757.55,0.00011099,2]
[345023108,1733933472771,-757.55,0.00011099,2]
[345023109,1733933472782,-757.55,0.00011099,2]
[345023110,1733933472792,-757.71875867,0.00011099,2]
[345023111,1733933472802,-521.37,0.00011099,2]
[345023112,1733933472811,-521.37,0.00011099,2]
[345023113,1733933472820,-521.37,0.00011099,2]
[345023114,1733933472829,-521.37,0.00011099,2]
[345023115,1733933472838,-521.37,0.00011099,2]
[345023116,1733933472847,-521.37,0.00011099,2]
[345023117,1733933472857,-521.37,0.00011099,2]
[345023118,1733933472866,-521.37,0.00011099,2]
[345023119,1733933472875,-521.52,0.00011099,2]
[345023120,1733933472885,-500.0,0.00011099,2]
[345023121,1733933472894,-500.0,0.00011099,2]
[345023122,1733933472903,-500.0,0.00011099,2]
[345023123,1733933472913,-500.0,0.00011099,2]
[345023124,1733933472922,-618.78089093,0.00011099,2]
[345023125,1733933472932,-500.0,0.00011099,2]
[345023126,1733933472941,-500.0,0.00011099,2]
[345023127,1733933472950,-500.0,0.00011099,2]
[345023128,1733933472959,-500.0,0.00011099,2]
[345023129,1733933472970,-372.02,0.00011099,2]
[345023130,1733933472979,-1584.19,0.00011099,2]
[345023131,1733933472988,-1584.19,0.00011099,2]
[345023132,1733933472997,-1584.19,0.00011099,2]
[345023133,1733933473006,-1584.19,0.00011099,2]
[345023134,1733933473015,-1584.19,0.00011099,2]
[345023135,1733933473025,-1584.19,0.00011099,2]
[345023136,1733933473034,-1584.19,0.00011099,2]
[345023137,1733933473043,-1584.19,0.00011099,2]
[345023138,1733933473052,-1584.33746464,0.00011099,2]
[345023139,1733933473061,-774.47,0.00011099,2]
[345023140,1733933473069,-774.47,0.00011099,2]
[345023141,1733933473079,-774.47,0.00011099,2]
[345023142,1733933473088,-774.47,0.00011099,2]
[345023143,1733933473097,-774.47,0.00011099,2]
[345023144,1733933473107,-774.47,0.00011099,2]
[345023145,1733933473116,-774.47,0.00011099,2]
[345023146,1733933473125,-774.47,0.00011099,2]
[345023147,1733933473134,-774.5064474,0.00011099,2]
[345023148,1733933473144,-500.0,0.00011099,2]
[345023149,1733933473153,-500.0,0.00011099,2]
[345023150,1733933473163,-500.0,0.00011099,2]
[345023151,1733933473176,-500.0,0.00011099,2]
[345023152,1733933473186,-500.0,0.00011099,2]
[345023153,1733933473195,-500.0,0.00011099,2]
[345023154,1733933473205,-500.0,0.00011099,2]
[345023155,1733933473218,-500.0,0.00011099,2]
[345023156,1733933473227,-500.0,0.00011099,2]
[345023157,1733933473243,-516.35717153,0.00011099,2]
[345023158,1733933473254,-782.05,0.00011099,2]
[345023159,1733933473263,-782.05,0.00011099,2]
[345023160,1733933473273,-782.05,0.00011099,2]
[345023161,1733933473282,-782.05,0.00011099,2]
[345023162,1733933473291,-782.05,0.00011099,2]
[345023163,1733933473301,-782.05,0.00011099,2]
[345023164,1733933473311,-782.05,0.00011099,2]
[345023165,1733933473320,-782.05,0.00011099,2]
[345023166,1733933473329,-782.08967191,0.00011099,2]
[345023167,1733933473340,-498.17679642,0.00011099,2]
[345023168,1733933473350,-500.0,0.00011099,2]
[345023169,1733933473360,-500.0,0.00011099,2]
[345023170,1733933473371,-500.0,0.00011099,2]
[345023171,1733933473381,-500.0,0.00011099,2]
[345023172,1733933473391,-500.0,0.00011099,2]
[345023173,1733933473401,-500.0,0.00011099,2]
[345023174,1733933473411,-599.08326758,0.00011099,2]
[345023175,1733933473421,-500.0,0.00011099,2]
[345023176,1733933473431,-500.0,0.00011099,2]
[345023177,1733933473441,-500.0,0.00011099,2]
[345023178,1733933473451,-500.0,0.00011099,2]
[345023179,1733933473460,-500.0,0.00011099,2]
[345023180,1733933473474,-500.0,0.00011099,2]
[345023181,1733933473484,-500.0,0.00011099,2]
[345023182,1733933473494,-500.0,0.00011099,2]
[345023183,1733933473505,-500.0,0.00011099,2]
[345023184,1733933473515,-402.83,0.00011099,2]
[345023185,1733933473524,-739.99,0.00011099,2]
[345023186,1733933473535,-739.99,0.00011099,2]
[345023187,1733933473544,-739.99,0.00011099,2]
[345023188,1733933473553,-739.99,0.00011099,2]
[345023189,1733933473563,-739.99,0.00011099,2]
[345023190,1733933473573,-739.99,0.00011099,2]
[345023191,1733933473582,-739.99,0.00011099,2]
[345023192,1733933473591,-739.99,0.00011099,2]
[345023193,1733933473600,-740.06510182,0.00011099,2]
[345023194,1733933473610,-500.0,0.00011099,2]
[345023195,1733933473620,-500.0,0.00011099,2]
[345023196,1733933473630,-500.0,0.00011099,2]
[345023197,1733933473640,-500.0,0.00011099,2]
[345023198,1733933473650,-500.0,0.00011099,2]
[345023199,1733933473659,-500.0,0.00011099,2]
[345023200,1733933473669,-500.0,0.00011099,2]
[345023201,1733933473679,-610.32832351,0.00011099,2]
[345023202,1733933473689,-537.36,0.00011099,2]
[345023203,1733933473698,-537.36,0.00011099,2]
[345023204,1733933473708,-537.36,0.00011099,2]
[345023205,1733933473722,-537.36,0.00011099,2]
[345023206,1733933473732,-537.36,0.00011099,2]
[345023207,1733933473741,-537.36,0.00011099,2]
[345023208,1733933473751,-537.36,0.00011099,2]
[345023209,1733933473760,-537.52,0.00011099,2]
[345023210,1733933473770,-678.49,0.00011099,2]
[345023211,1733933473779,-678.49,0.00011099,2]
[345023212,1733933473789,-678.49,0.00011099,2]
[345023213,1733933473798,-678.49,0.00011099,2]
[345023214,1733933473808,-678.49,0.00011099,2]
[345023215,1733933473817,-678.49,0.00011099,2]
[345023216,1733933473827,-678.49,0.00011099,2]
[345023217,1733933473836,-678.49,0.00011099,2]
[345023218,1733933473846,-678.53,0.00011099,2]
[345023219,1733933473855,-500.0,0.00011099,2]
[345023220,1733933473864,-335.35595449,0.00011099,2]
[345023221,1733933473875,-855.96,0.00011099,2]
[345023222,1733933473884,-855.96,0.00011099,2]
[345023223,1733933473894,-855.96,0.00011099,2]
[345023224,1733933473904,-855.96,0.00011099,2]
[345023225,1733933473914,-855.96,0.00011099,2]
[345023226,1733933473923,-855.96,0.00011099,2]
[345023227,1733933473932,-630.74,0.00011099,2]
[345023228,1733933473941,-630.74,0.00011099,2]
[345023229,1733933473951,-855.96,0.00011099,2]
[345023230,1733933473961,-630.74,0.00011099,2]
[345023231,1733933473970,-855.96,0.00011099,2]
[345023232,1733933473980,-630.74,0.00011099,2]
[345023233,1733933473989,-856.04221841,0.00011099,2]
[345023234,1733933473998,-630.74,0.00011099,2]
[345023235,1733933474007,-630.74,0.00011099,2]
[345023236,1733933474016,-630.74,0.00011099,2]
[345023237,1733933474025,-630.92434266,0.00011099,2]
[345023238,1733933474034,-856.8,0.00011099,2]
[345023239,1733933474043,-856.8,0.00011099,2]
[345023240,1733933474052,-856.8,0.00011099,2]
[345023241,1733933474063,-856.8,0.00011099,2]
[345023242,1733933474072,-856.8,0.00011099,2]
[345023243,1733933474082,-856.8,0.00011099,2]
[345023244,1733933474091,-856.8,0.00011099,2]
[345023245,1733933474098,-856.8,0.00011099,2]
[345023246,1733933474106,-856.90429848,0.00011099,2]
[345023247,1733933474113,-973.43,0.00011099,2]
[345023248,1733933474119,-973.43,0.00011099,2]
[345023249,1733933474127,-973.43,0.00011099,2]
[345023250,1733933474134,-973.43,0.00011099,2]
[345023251,1733933474141,-973.43,0.00011099,2]
[345023252,1733933474148,-973.43,0.00011099,2]
[345023253,1733933474154,-973.43,0.00011099,2]
[345023254,1733933474167,-973.43,0.00011099,2]
[345023255,1733933474179,-973.43,0.00011099,2]
[345023256,1733933474188,-973.43,0.00011099,2]
[345023257,1733933474198,-973.47984131,0.00011099,2]
[345023258,1733933474211,-5180.55,0.00011099,2]
[345023259,1733933474220,-5180.55,0.00011099,2]
[345023260,1733933474230,-507.75,0.00011099,2]
[345023261,1733933474239,-5180.55,0.00011099,2]
[345023262,1733933474248,-507.75,0.00011099,2]
[345023263,1733933474258,-5180.55,0.00011099,2]
[345023264,1733933474267,-507.75,0.00011099,2]
[345023265,1733933474277,-507.75,0.00011099,2]
[345023266,1733933474286,-5180.55,0.00011099,2]
[345023267,1733933474295,-507.83,0.00011099,2]
[345023268,1733933474304,-5180.55,0.00011099,2]
[345023269,1733933474314,-5180.55,0.00011099,2]
[345023270,1733933474323,-5180.55,0.00011099,2]
[345023271,1733933474335,-5180.59754615,0.00011099,2]
[345023272,1733933474344,-500.0,0.00011099,2]
[345023273,1733933474353,-152.01983888,0.00011099,2]
[345023274,1733933474363,-500.0,0.00011099,2]
[345023275,1733933474372,-500.0,0.00011099,2]
[345023276,1733933474381,-500.0,0.00011099,2]
[345023277,1733933474390,-209.50584956,0.00011099,2]
[345023278,1733933474399,-859.11,0.00011099,2]
[345023279,1733933474407,-859.11,0.00011099,2]
[345023280,1733933474415,-859.11,0.00011099,2]
[345023281,1733933474423,-859.11,0.00011099,2]
[345023282,1733933474431,-859.11,0.00011099,2]
[345023283,1733933474439,-859.11,0.00011099,2]
[345023284,1733933474449,-859.11,0.00011099,2]
[345023285,1733933474459,-859.11,0.00011099,2]
[345023286,1733933474474,-859.18282899,0.00011099,2]
[345023287,1733933474484,-1689.59,0.00011099,2]
[345023288,1733933474494,-1689.59,0.00011099,2]
[345023289,1733933474504,-1689.59,0.00011099,2]
[345023290,1733933474515,-1689.59,0.00011099,2]
[345023291,1733933474524,-1689.59,0.00011099,2]
[345023292,1733933474535,-1689.59,0.00011099,2]
[345023293,1733933474545,-1689.59,0.00011099,2]
[345023294,1733933474555,-1689.59,0.00011099,2]
[345023295,1733933474566,-1689.77324841,0.00011099,2]
[345023296,1733933474575,-622.12,0.00011099,2]
[345023297,1733933474584,-622.12,0.00011099,2]
[345023298,1733933474594,-622.12,0.00011099,2]
[345023299,1733933474604,-622.12,0.00011099,2]
[345023300,1733933474614,-622.12,0.00011099,2]
[345023301,1733933474623,-622.12,0.00011099,2]
[345023302,1733933474633,-622.12,0.00011099,2]
[345023303,1733933474643,-622.12,0.00011099,2]
[345023304,1733933474652,-622.12913665,0.00011099,2]
[345023305,1733933474662,-717.92,0.00011099,2]
[345023306,1733933474672,-717.92,0.00011099,2]
[345023307,1733933474682,-717.92,0.00011099,2]
[345023308,1733933474692,-717.92,0.00011099,2]
[345023309,1733933474702,-717.92,0.00011099,2]
[345023310,1733933474716,-717.92,0.00011099,2]
[345023311,1733933474727,-717.92,0.00011099,2]
[345023312,1733933474738,-717.92,0.00011099,2]
[345023313,1733933474748,-718.06081261,0.00011099,2]
[345023314,1733933474758,-943.58,0.00011099,2]
[345023315,1733933474767,-943.58,0.00011099,2]
[345023316,1733933474777,-943.58,0.00011099,2]
[345023317,1733933474787,-943.58,0.00011099,2]
[345023318,1733933474797,-943.58,0.00011099,2]
[345023319,1733933474807,-943.58,0.00011099,2]
[345023320,1733933474816,-943.58,0.00011099,2]
[345023321,1733933474826,-943.58,0.00011099,2]
[345023322,1733933474835,-943.72006367,0.00011099,2]
[345023323,1733933474844,-3169.78,0.00011099,2]
[345023324,1733933474853,-3169.78,0.00011099,2]
[345023325,1733933474864,-3169.78,0.00011099,2]
[345023326,1733933474873,-3169.78,0.00011099,2]
[345023327,1733933474883,-3169.78,0.00011099,2]
[345023328,1733933474893,-3169.78,0.00011099,2]
[345023329,1733933474903,-3169.78,0.00011099,2]
[345023330,1733933474913,-3169.78,0.00011099,2]
[345023331,1733933474924,-3170.01514653,0.00011099,2]
[345023332,1733933474933,-757.0,0.00011099,2]
[345023333,1733933474943,-757.0,0.00011099,2]
[345023334,1733933474952,-757.0,0.00011099,2]
[345023335,1733933474964,-757.0,0.00011099,2]
[345023336,1733933474975,-757.0,0.00011099,2]
[345023337,1733933474984,-757.0,0.00011099,2]
[345023338,1733933474994,-757.0,0.00011099,2]
[345023339,1733933475004,-757.0,0.00011099,2]
[345023340,1733933475014,-757.13465218,0.00011099,2]
[345023341,1733933475024,-211.92,0.00011099,2]
[345023342,1733933475033,-568.81,0.00011099,2]
[345023343,1733933475043,-568.81,0.00011099,2]
[345023344,1733933475052,-568.81,0.00011099,2]
[345023345,1733933475062,-568.81,0.00011099,2]
[345023346,1733933475071,-568.81,0.00011099,2]
[345023347,1733933475081,-568.81,0.00011099,2]
[345023348,1733933475091,-568.81,0.00011099,2]
[345023349,1733933475100,-568.81,0.00011099,2]
[345023350,1733933475109,-568.81,0.00011099,2]
[345023351,1733933475119,-568.81,0.00011099,2]
[345023352,1733933475128,-568.93,0.00011099,2]
[345023353,1733933475137,-914.69,0.00011099,2]
[345023354,1733933475147,-914.69,0.00011099,2]
[345023355,1733933475158,-914.69,0.00011099,2]
[345023356,1733933475172,-914.69,0.00011099,2]
[345023357,1733933475183,-914.69,0.00011099,2]
[345023358,1733933475192,-914.69,0.00011099,2]
[345023359,1733933475201,-914.69,0.00011099,2]
[345023360,1733933475216,-914.69,0.00011099,2]
[345023361,1733933475226,-914.83,0.00011099,2]
[345023362,1733933475236,-3087.73,0.00011099,2]
[345023363,1733933475246,-3087.73,0.00011099,2]
[345023364,1733933475256,-3087.73,0.00011099,2]
[345023365,1733933475266,-3087.73,0.00011099,2]
[345023366,1733933475276,-1344.45,0.00011099,2]
[345023367,1733933475286,-3087.73,0.00011099,2]
[345023368,1733933475296,-1344.45,0.00011099,2]
[345023369,1733933475306,-3087.73,0.00011099,2]
[345023370,1733933475316,-1344.45,0.00011099,2]
[345023371,1733933475325,-3087.73,0.00011099,2]
[345023372,1733933475335,-1344.45,0.00011099,2]
[345023373,1733933475344,-3087.73,0.00011099,2]
[345023374,1733933475354,-1344.45,0.00011099,2]
[345023375,1733933475364,-1344.45,0.00011099,2]
[345023376,1733933475374,-3087.78038121,0.00011099,2]
[345023377,1733933475383,-1344.45,0.00011099,2]
[345023378,1733933475393,-953.53,0.00011099,2]
[345023379,1733933475403,-1344.45,0.00011099,2]
[345023380,1733933475412,-953.53,0.00011099,2]
[345023381,1733933475422,-17349.00000125,0.000111,2]
[345023382,1733933475432,-388170.04265363,0.000111,2]
[345023383,1733933475983,-483.12,0.000111,2]
[345023384,1733933475994,-2219.41665664,0.000111,2]
[345023385,1733933476014,-690.9692215,0.00011099,2]
[345023386,1733933476025,-653.4807785,0.00011099,2]
[345023387,1733933476033,-588.43086652,0.000111,2]
[345023388,1733933476044,-874.10305843,0.000111,2]
[345023389,1733933476055,-1562.60622903,0.000111,2]
[345023390,1733933476078,-462.28166682,0.00011099,2]
[345023391,1733933476219,-215.37029141,0.000109,2]
[345023392,1733933476230,-1579.4166867,0.00010979,2]
[345023393,1733933476248,-294.29015481,0.00010979,2]
[345023394,1733933476261,-1096.81507426,0.00010979,2]
[345023395,1733933476271,-1000.0,0.00011,2]
[345023396,1733933476280,-491.24833318,0.00011099,2]
[345023397,1733933476290,-1344.45,0.00011099,2]
[345023398,1733933476299,-953.53,0.00011099,2]
[345023399,1733933476308,-1344.64,0.00011099,2]
[345023400,1733933476318,-953.68176183,0.00011099,2]
[345023401,1733933476327,-4980.54211004,0.000111,2]
[345023402,1733933476340,-426.95402297,0.000111,2]
[345023403,1733933476351,-642.50406786,0.000111,2]
[345023404,1733933476362,-933.12865626,0.000111,2]
[345023405,1733933476577,-2970.52191576,0.0001099,2]
[345023406,1733933476587,-368269.09557211,0.000111,2]
[345023407,1733933476597,-47774.53434449,0.000111,2]
[345023408,1733933476607,-312349.2196229,0.000111,2]
[345023409,1733933476618,-1959.71130851,0.000111,2]
[345023410,1733933476629,-3321.08102364,0.000111,2]
[345023411,1733933476641,-2076.19737135,0.000111,2]
[345023412,1733933476665,-974.174269,0.000111,2]
[345023413,1733933703029,158.69286135,0.000111,30]
[345023414,1733933703106,187.0,0.000111,30]
[345023415,1733933703171,154.0,0.000111,30]
[345023416,1733933703606,154.0,0.00011879,30]
[345023417,1733933703893,154.0,0.00012657,30]
[345023418,1733933704219,154.0,0.00013436,30]
[345023419,1733933933710,1352.18,8.219e-05,2]
[345023420,1733933958082,2998.14,0.0002,120]
[345023421,1733934003068,187.0,0.000111,30]
[345023422,1733934004211,154.0,0.000111,30]
[345023423,1733934004524,154.0,0.0001219,30]
[345023424,1733934004881,154.0,0.0001328,30]
[345023425,1733934043029,370109.44276495,9.603e-05,2]
[345023426,1733934303392,187.0,9.603e-05,30]
[345023427,1733934304054,154.0,9.603e-05,30]
[345023428,1733934304391,154.0,0.00011374,30]
[345023429,1733934304830,154.0,0.00013145,30]
[345023430,1733934384960,198.24,7.638e-05,2]
[345023431,1733934388015,575.11,9.53e-05,2]
[345023454,1733934520155,250.0,9.507e-05,2]
[345023456,1733934572762,272.73,9.596e-05,2]
[345023457,1733934578797,250.0,9.565e-05,2]
[345023458,1733934581411,159.64,9.587e-05,2]
[345023459,1733934603477,187.0,9.603e-05,30]
[345023460,1733934603997,154.0,9.603e-05,30]
[345023461,1733934604286,154.0,0.00012702,30]
[345023472,1733934632270,-250.0,9.672e-05,2]
[345023473,1733934632280,-306.26670477,9.729e-05,2]
[345023474,1733934632292,-29.58271054,9.729e-05,2]
[345023475,1733934632301,-810.28965116,9.729e-05,2]
[345023476,1733934632329,-895.89034884,9.729e-05,2]
[345023477,1733934632338,-1001.04,9.746e-05,2]
[345023478,1733934632348,-200.0,9.747e-05,2]
[345023479,1733934632357,-200.0,9.799e-05,2]
[345023480,1733934632367,-300.0,9.815e-05,2]
[345023481,1733934632377,-23900.0,9.816e-05,2]
[345023482,1733934632386,-1561.55,9.934e-05,2]
[345023483,1733934632396,-988.02,9.996e-05,2]
[345023484,1733934632406,-150.0,9.999e-05,2]
[345023485,1733934632415,-46033.42895291,0.0001,2]
[345023486,1733934632427,-550.89667,0.0001,2]
[345023487,1733934632438,-1073.52361,0.0001,2]
[345023488,1733934632455,-538.4529968,0.0001,2]
[345023489,1733934632466,-3899.36511323,0.0001,2]
[345023490,1733934632478,-2040.0,0.0001,2]
[345023491,1733934632489,-814.28,0.0001,2]
[345023492,1733934632504,-1084.5,0.0001,2]
[345023493,1733934632517,-833.525,0.0001,2]
[345023494,1733934632529,-900.55,0.0001,2]
[345023495,1733934632541,-946.0,0.0001,2]
[345023496,1733934632552,-422.22855516,0.0001,2]
[345023497,1733934632565,-5065.11,0.0001,2]
[345023498,1733934632576,-550.0,0.0001,2]
[345023505,1733934638188,-3803.045,0.0001,2]
[345023506,1733934638199,-1294.37000004,0.0001,2]
[345023507,1733934638210,-5052.0,0.0001,2]